Workbook

Sheet Sheet1
A1: Graduate Assistant Fringe - Tuition & Health Components
A2: Office of Sponsored Programs/Contract & Grant Administration
A3: Estimated for the Period of 8/16/2024 through 8/15/2030*
B5: 2024-2025 | C5: 2025-2026 | D5: 2026-2027 | E5: 2027-2028 | F5: 2028-2029 | G5: 2029-2030
A6: Health:
A7: Fall | B7: 1970 | C7: =ROUND(B7*1.1,0) -> 2167 | D7: 2384 | E7: 2622 | F7: 2884 | G7: 3172
A8: Spring | B8: 1970 | C8: 2167 | D8: 2384 | E8: 2622 | F8: 2884 | G8: 3172
A9: Summer | B9: 0 | C9: 0 | D9: 0 | E9: 0 | F9: 0 | G9: 0
A10: Health Total | B10: =B7+B8 -> 3940 | C10: =C7+C8 -> 4334 | D10: 4768 | E10: 5244 | F10: 5768 | G10: 6344
A12: Grad Students (Excluding Engineering)
A13: Tuition & Fees:
A14: Fall | B14: 6175 | C14: =ROUND(B14*1.03,0) -> 6360 | D14: =ROUND(C14*1.03,0) -> 6551 | E14: 6748 | F14: 6950 | G14: 7159
A15: Spring | B15: 6175 | C15: =ROUND(B15*1.03,0) -> 6360 | D15: =ROUND(C15*1.03,0) -> 6551 | E15: 6748 | F15: 6950 | G15: 7159
A16: Summer | B16: 2697 | C16: =ROUND(B16*1.03,0) -> 2778 | D16: =ROUND(C16*1.03,0) -> 2861 | E16: 2947 | F16: 3035 | G16: 3126
A17: Tuition & Fees Total | B17: =B14+B15+B16 -> 15047 | C17: =C14+C15+C16 -> 15498 | D17: 15963 | E17: 16443 | F17: 16935 | G17: 17444
A19: 9 Month Total Costs | B19: =B10+B14+B15 -> 16290 | C19: =C10+C14+C15 -> 17054 | D19: 17870 | E19: 18740 | F19: 19668 | G19: 20662
A21: 12 Month Total Costs | B21: =B10+B17 -> 18987 | C21: =C10+C17 -> 19832 | D21: 20731 | E21: 21687 | F21: 22703 | G21: 23788
A23: Engineering Grad Students
A24: Tuition & Fees:
A25: Fall | B25: 6381 | C25: =ROUND(B25*1.03,0) -> 6572 | D25: =ROUND(C25*1.03,0) -> 6769 | E25: 6972 | F25: 7181 | G25: 7396
A26: Spring | B26: 6381 | C26: =ROUND(B26*1.03,0) -> 6572 | D26: =ROUND(C26*1.03,0) -> 6769 | E26: 6972 | F26: 7181 | G26: 7396
A27: Summer | B27: 2697 | C27: =ROUND(B27*1.03,0) -> 2778 | D27: =ROUND(C27*1.03,0) -> 2861 | E27: 2947 | F27: 3035 | G27: 3126
A28: Tuition & Fees Total | B28: =B25+B26+B27 -> 15459 | C28: =C25+C26+C27 -> 15922 | D28: 16399 | E28: 16891 | F28: 17397 | G28: 17918
A30: 9 Month Total Costs | B30: =B10+B25+B26 -> 16702 | C30: =C10+C25+C26 -> 17478 | D30: 18306 | E30: 19188 | F30: 20130 | G30: 21136
A32: 12 Month Total Costs | B32: =B10+B28 -> 19399 | C32: =C10+C28 -> 20256 | D32: 21167 | E32: 22135 | F32: 23165 | G32: 24262
A33: The Tuition and Health benefits will be charged on a bi-weekly basis. Tuition and Fees will be charged to object code 6230 and Health will be charged to object code 6516. The above amounts will be applied to all Grads regardless of percent employment (1/4, 1/2 or 3/4). Awards using MSU's negotiated F&A rates will not be charged F&A on the tuition portion.
A34: * Assumes increases of 10% per year for health and 3% per year for graduate tuition.
A36: FICA Note - Graduate Assistant's enrolled for less than 5 credits for Master's level or 3 credits for Doctoral level will be assessed 7.65% FICA/Medicare in addition to the above charges.
A38: ACA Note - Graduate Assistants who have a 3/4 time appointment and are enrolled in the Consumer Driven Health Plan (CDHP) insurance which is offered due to ACA requirements (in addition to the student health insurance ) will need an additional $520.46/month budgeted. This cost should be included in the "other" category of your budget.
A40: MSU-HRD offers Summer-only stipend-only no-tuition Research Graduate Assistantships for qualifying individuals. Contact MSU-HRD for further details at 517-353-4434.

Sheet Sheet2

Sheet Sheet3
